{"text_format":"3","workbook":"xlsx","n_sheets":1,"sheets":["Note de frais"],"not_rendered":{"images":2,"defined_names":12},"read":"whole","date_system":"1900"}

{"sheet":"Note de frais","index":0,"n_rows":24,"n_cols":13,"rows_kept":24,"merged":[[3,2,3,3],[3,5,3,6],[3,9,3,10],[4,2,4,3],[4,5,4,6],[4,9,4,10],[5,2,5,3],[5,5,5,6],[5,9,5,10],[6,2,6,3],[6,5,6,6],[6,9,6,10],[7,9,7,10]]}
[null,"NOTE DE FRAIS"]
[null,"CONTOSO, LTD"]
[null,"123 rue des Écoles, 44000 Nantes"]
[null,"TÉLÉPHONE",{"v":4255550121,"d":"42 55 55 01 21"},null,"NOM","Marie Berthelette",null,null,"MOTIF","Séminaire commercial annuel",null,"INDEMNITÉS KILOMÉTRIQUES",{"v":0.5,"d":"0.50 €/kilomètre"}]
[null,"TÉLÉCOPIE",{"v":4255550122,"d":"42 55 55 01 22"},null,"SERVICE","Ventes",null,null,"DÉBUT",{"$f":"IFERROR(MIN(Dépenses[DATE]),\"\")","v":"2018-06-04"},null,"INDEMNITÉS DE REPAS",{"v":30,"d":"30.00 €/jour"}]
[null,"E-MAIL","info@contoso.com",null,"FONCTION","Directrice générale",null,null,"FIN",{"$f":"IFERROR(MAX(Dépenses[DATE]),\"\")","v":"2018-07-04"},null,"INDEMNITÉS D’HÉBERGEMENT",{"v":200,"d":"200.00 €/nuit"}]
[null,"SITE WEB","www.contoso.com",null,"RESPONSABLE","Mickael Tulier",null,null,"PRÉPARÉE PAR","Marie Berthelette",null,"INDEMNITÉS TÉLÉPHONIQUES",{"v":10,"d":"10.00 €/jour"}]
[{"$nulls":8},"APPROUVÉE PAR","Mickael Tulier",null,"INDEMNITÉS DIVERSES",{"v":50,"d":"50.00 €/jour"}]
[]
[null,"DATE","COMPTE","DESCRIPTION","HÔTEL","TRANSPORT","REPAS","TÉLÉPHONE","DIVERS","KILOMÉTRAGE \nAU DÉPART","KILOMÉTRAGE \nÀ L’ARRIVÉE","KILOMÉTRAGE \nTOTAL","TOTAL "]
[null,{"$f":"TODAY()","v":"2018-06-04"},"Ventes","Kilométrage",{"$nulls":4},{"v":50,"d":"50.00 €"},{"v":11378.5,"d":"11,378.5km."},{"v":11456.2,"d":"11,456.2km."},{"$f":"IF(COUNTA(Dépenses[[#This Row],[KILOMÉTRAGE \nAU DÉPART]:[KILOMÉTRAGE \nÀ L’ARRIVÉE]])=2,(Dépenses[[#This Row],[KILOMÉTRAGE \nÀ L’ARRIVÉE]]-Dépenses[[#This Row],[KILOMÉTRAGE \nAU DÉPART]])*IndemnitésKilométriques,\"\")","v":{"v":38.850000000000364,"d":"38.85 €"}},{"$f":"IF(COUNTA(Dépenses[[#This Row],[DATE]:[KILOMÉTRAGE \nÀ L’ARRIVÉE]])=0,\"\",SUM(Dépenses[[#This Row],[HÔTEL]:[TRANSPORT]],Dépenses[[#This Row],[REPAS]:[DIVERS]],((Dépenses[[#This Row],[KILOMÉTRAGE \nÀ L’ARRIVÉE]]-Dépenses[[#This Row],[KILOMÉTRAGE \nAU DÉPART]])*(IndemnitésKilométriques))))","v":{"v":88.85000000000036,"d":"88.85 €"}}]
[null,{"$f":"TODAY()+30","v":"2018-07-04"},"Ventes","Convention",{"v":445,"d":"445.00 €"},{"v":225,"d":"225.00 €"},{"v":20,"d":"20.00 €"},null,{"v":5,"d":"5.00 €"},{"v":11500,"d":"11,500.0km."},{"v":11560,"d":"11,560.0km."},{"$f":"IF(COUNTA(Dépenses[[#This Row],[KILOMÉTRAGE \nAU DÉPART]:[KILOMÉTRAGE \nÀ L’ARRIVÉE]])=2,(Dépenses[[#This Row],[KILOMÉTRAGE \nÀ L’ARRIVÉE]]-Dépenses[[#This Row],[KILOMÉTRAGE \nAU DÉPART]])*IndemnitésKilométriques,\"\")","v":{"v":30,"d":"30.00 €"}},{"$f":"IF(COUNTA(Dépenses[[#This Row],[DATE]:[KILOMÉTRAGE \nÀ L’ARRIVÉE]])=0,\"\",SUM(Dépenses[[#This Row],[HÔTEL]:[TRANSPORT]],Dépenses[[#This Row],[REPAS]:[DIVERS]],((Dépenses[[#This Row],[KILOMÉTRAGE \nÀ L’ARRIVÉE]]-Dépenses[[#This Row],[KILOMÉTRAGE \nAU DÉPART]])*(IndemnitésKilométriques))))","v":{"v":725,"d":"725.00 €"}}]
[{"$nulls":11},{"$f":"IF(COUNTA(Dépenses[[#This Row],[KILOMÉTRAGE \nAU DÉPART]:[KILOMÉTRAGE \nÀ L’ARRIVÉE]])=2,(Dépenses[[#This Row],[KILOMÉTRAGE \nÀ L’ARRIVÉE]]-Dépenses[[#This Row],[KILOMÉTRAGE \nAU DÉPART]])*IndemnitésKilométriques,\"\")","v":""},{"$f":"IF(COUNTA(Dépenses[[#This Row],[DATE]:[KILOMÉTRAGE \nÀ L’ARRIVÉE]])=0,\"\",SUM(Dépenses[[#This Row],[HÔTEL]:[TRANSPORT]],Dépenses[[#This Row],[REPAS]:[DIVERS]],((Dépenses[[#This Row],[KILOMÉTRAGE \nÀ L’ARRIVÉE]]-Dépenses[[#This Row],[KILOMÉTRAGE \nAU DÉPART]])*(IndemnitésKilométriques))))","v":""}]
[{"$nulls":11},{"$f":"IF(COUNTA(Dépenses[[#This Row],[KILOMÉTRAGE \nAU DÉPART]:[KILOMÉTRAGE \nÀ L’ARRIVÉE]])=2,(Dépenses[[#This Row],[KILOMÉTRAGE \nÀ L’ARRIVÉE]]-Dépenses[[#This Row],[KILOMÉTRAGE \nAU DÉPART]])*IndemnitésKilométriques,\"\")","v":""},{"$f":"IF(COUNTA(Dépenses[[#This Row],[DATE]:[KILOMÉTRAGE \nÀ L’ARRIVÉE]])=0,\"\",SUM(Dépenses[[#This Row],[HÔTEL]:[TRANSPORT]],Dépenses[[#This Row],[REPAS]:[DIVERS]],((Dépenses[[#This Row],[KILOMÉTRAGE \nÀ L’ARRIVÉE]]-Dépenses[[#This Row],[KILOMÉTRAGE \nAU DÉPART]])*(IndemnitésKilométriques))))","v":""}]
[{"$nulls":11},{"$f":"IF(COUNTA(Dépenses[[#This Row],[KILOMÉTRAGE \nAU DÉPART]:[KILOMÉTRAGE \nÀ L’ARRIVÉE]])=2,(Dépenses[[#This Row],[KILOMÉTRAGE \nÀ L’ARRIVÉE]]-Dépenses[[#This Row],[KILOMÉTRAGE \nAU DÉPART]])*IndemnitésKilométriques,\"\")","v":""},{"$f":"IF(COUNTA(Dépenses[[#This Row],[DATE]:[KILOMÉTRAGE \nÀ L’ARRIVÉE]])=0,\"\",SUM(Dépenses[[#This Row],[HÔTEL]:[TRANSPORT]],Dépenses[[#This Row],[REPAS]:[DIVERS]],((Dépenses[[#This Row],[KILOMÉTRAGE \nÀ L’ARRIVÉE]]-Dépenses[[#This Row],[KILOMÉTRAGE \nAU DÉPART]])*(IndemnitésKilométriques))))","v":""}]
[{"$nulls":11},{"$f":"IF(COUNTA(Dépenses[[#This Row],[KILOMÉTRAGE \nAU DÉPART]:[KILOMÉTRAGE \nÀ L’ARRIVÉE]])=2,(Dépenses[[#This Row],[KILOMÉTRAGE \nÀ L’ARRIVÉE]]-Dépenses[[#This Row],[KILOMÉTRAGE \nAU DÉPART]])*IndemnitésKilométriques,\"\")","v":""},{"$f":"IF(COUNTA(Dépenses[[#This Row],[DATE]:[KILOMÉTRAGE \nÀ L’ARRIVÉE]])=0,\"\",SUM(Dépenses[[#This Row],[HÔTEL]:[TRANSPORT]],Dépenses[[#This Row],[REPAS]:[DIVERS]],((Dépenses[[#This Row],[KILOMÉTRAGE \nÀ L’ARRIVÉE]]-Dépenses[[#This Row],[KILOMÉTRAGE \nAU DÉPART]])*(IndemnitésKilométriques))))","v":""}]
[{"$nulls":11},{"$f":"IF(COUNTA(Dépenses[[#This Row],[KILOMÉTRAGE \nAU DÉPART]:[KILOMÉTRAGE \nÀ L’ARRIVÉE]])=2,(Dépenses[[#This Row],[KILOMÉTRAGE \nÀ L’ARRIVÉE]]-Dépenses[[#This Row],[KILOMÉTRAGE \nAU DÉPART]])*IndemnitésKilométriques,\"\")","v":""},{"$f":"IF(COUNTA(Dépenses[[#This Row],[DATE]:[KILOMÉTRAGE \nÀ L’ARRIVÉE]])=0,\"\",SUM(Dépenses[[#This Row],[HÔTEL]:[TRANSPORT]],Dépenses[[#This Row],[REPAS]:[DIVERS]],((Dépenses[[#This Row],[KILOMÉTRAGE \nÀ L’ARRIVÉE]]-Dépenses[[#This Row],[KILOMÉTRAGE \nAU DÉPART]])*(IndemnitésKilométriques))))","v":""}]
[{"$nulls":11},{"$f":"IF(COUNTA(Dépenses[[#This Row],[KILOMÉTRAGE \nAU DÉPART]:[KILOMÉTRAGE \nÀ L’ARRIVÉE]])=2,(Dépenses[[#This Row],[KILOMÉTRAGE \nÀ L’ARRIVÉE]]-Dépenses[[#This Row],[KILOMÉTRAGE \nAU DÉPART]])*IndemnitésKilométriques,\"\")","v":""},{"$f":"IF(COUNTA(Dépenses[[#This Row],[DATE]:[KILOMÉTRAGE \nÀ L’ARRIVÉE]])=0,\"\",SUM(Dépenses[[#This Row],[HÔTEL]:[TRANSPORT]],Dépenses[[#This Row],[REPAS]:[DIVERS]],((Dépenses[[#This Row],[KILOMÉTRAGE \nÀ L’ARRIVÉE]]-Dépenses[[#This Row],[KILOMÉTRAGE \nAU DÉPART]])*(IndemnitésKilométriques))))","v":""}]
[{"$nulls":11},{"$f":"IF(COUNTA(Dépenses[[#This Row],[KILOMÉTRAGE \nAU DÉPART]:[KILOMÉTRAGE \nÀ L’ARRIVÉE]])=2,(Dépenses[[#This Row],[KILOMÉTRAGE \nÀ L’ARRIVÉE]]-Dépenses[[#This Row],[KILOMÉTRAGE \nAU DÉPART]])*IndemnitésKilométriques,\"\")","v":""},{"$f":"IF(COUNTA(Dépenses[[#This Row],[DATE]:[KILOMÉTRAGE \nÀ L’ARRIVÉE]])=0,\"\",SUM(Dépenses[[#This Row],[HÔTEL]:[TRANSPORT]],Dépenses[[#This Row],[REPAS]:[DIVERS]],((Dépenses[[#This Row],[KILOMÉTRAGE \nÀ L’ARRIVÉE]]-Dépenses[[#This Row],[KILOMÉTRAGE \nAU DÉPART]])*(IndemnitésKilométriques))))","v":""}]
[{"$nulls":11},{"$f":"IF(COUNTA(Dépenses[[#This Row],[KILOMÉTRAGE \nAU DÉPART]:[KILOMÉTRAGE \nÀ L’ARRIVÉE]])=2,(Dépenses[[#This Row],[KILOMÉTRAGE \nÀ L’ARRIVÉE]]-Dépenses[[#This Row],[KILOMÉTRAGE \nAU DÉPART]])*IndemnitésKilométriques,\"\")","v":""},{"$f":"IF(COUNTA(Dépenses[[#This Row],[DATE]:[KILOMÉTRAGE \nÀ L’ARRIVÉE]])=0,\"\",SUM(Dépenses[[#This Row],[HÔTEL]:[TRANSPORT]],Dépenses[[#This Row],[REPAS]:[DIVERS]],((Dépenses[[#This Row],[KILOMÉTRAGE \nÀ L’ARRIVÉE]]-Dépenses[[#This Row],[KILOMÉTRAGE \nAU DÉPART]])*(IndemnitésKilométriques))))","v":""}]
[{"$nulls":11},{"$f":"IF(COUNTA(Dépenses[[#This Row],[KILOMÉTRAGE \nAU DÉPART]:[KILOMÉTRAGE \nÀ L’ARRIVÉE]])=2,(Dépenses[[#This Row],[KILOMÉTRAGE \nÀ L’ARRIVÉE]]-Dépenses[[#This Row],[KILOMÉTRAGE \nAU DÉPART]])*IndemnitésKilométriques,\"\")","v":""},{"$f":"IF(COUNTA(Dépenses[[#This Row],[DATE]:[KILOMÉTRAGE \nÀ L’ARRIVÉE]])=0,\"\",SUM(Dépenses[[#This Row],[HÔTEL]:[TRANSPORT]],Dépenses[[#This Row],[REPAS]:[DIVERS]],((Dépenses[[#This Row],[KILOMÉTRAGE \nÀ L’ARRIVÉE]]-Dépenses[[#This Row],[KILOMÉTRAGE \nAU DÉPART]])*(IndemnitésKilométriques))))","v":""}]
[null,"TOTAUX",null,null,{"$f":"SUBTOTAL(109,Dépenses[HÔTEL])","v":{"v":445,"d":"445.00 €"}},{"$f":"SUBTOTAL(109,Dépenses[TRANSPORT])","v":{"v":225,"d":"225.00 €"}},{"$f":"SUBTOTAL(109,Dépenses[REPAS])","v":{"v":20,"d":"20.00 €"}},{"$f":"SUBTOTAL(109,Dépenses[TÉLÉPHONE])","v":0},{"$f":"SUBTOTAL(109,Dépenses[DIVERS])","v":{"v":55,"d":"55.00 €"}},{"$nulls":3},{"$f":"SUBTOTAL(109,Dépenses[[TOTAL ]])","v":{"v":813.8500000000004,"d":"813.85 €"}}]
[{"$nulls":11},"FRAIS AVANCÉS",{"v":0,"d":"0.00 €"}]
[{"$nulls":11},"TOTAL",{"$f":"Dépenses[[#Totals],[TOTAL ]]-Frais_avancés","v":{"v":813.8500000000004,"d":"813.85 €"}}]